fUST/lending_fUST_20240416
["ID","MTS","AMOUNT","RATE_DAILY","PERIOD"]
[322699293,1713222661744,-769.54,0.00033424,7]
[322699294,1713222661755,-511.65020668,0.00033424,7]
[322699295,1713222661765,-513.71192368,0.00033424,7]
[322699296,1713222661776,-562.94,0.00033424,7]
[322699297,1713222661787,-500.0,0.00033424,7]
[322699298,1713222661798,-500.0,0.00033424,7]
[322699299,1713222661807,-500.0,0.00033424,7]
[322699300,1713222661817,-500.0,0.00033424,7]
[322699301,1713222661828,-500.0,0.00033424,7]
[322699302,1713222661837,-500.0,0.00033424,7]
[322699303,1713222661848,-500.0,0.00033424,7]
[322699304,1713222661859,-736.83,0.00033424,7]
[322699305,1713222661870,-500.0,0.00033424,7]
[322699306,1713222661881,-500.0,0.00033424,7]
[322699307,1713222661892,-333.279038,0.00033424,2]
[322699308,1713222661903,-500.0,0.00033424,7]
[322699309,1713222661914,-333.279038,0.00033424,2]
[322699310,1713222661925,-500.0,0.00033424,7]
[322699311,1713222661935,-500.0,0.00033424,7]
[322699312,1713222661945,-500.0,0.00033424,7]
[322699313,1713222661955,-710.12,0.00033424,7]
[322699314,1713222661965,-500.0,0.00033424,7]
[322699315,1713222661975,-500.0,0.00033424,7]
[322699316,1713222661986,-1114.15,0.00033424,7]
[322699317,1713222661996,-7430.81,0.00033424,7]
[322699318,1713222662007,-3446.38,0.00033424,7]
[322699319,1713222662017,-523.83,0.00033424,7]
[322699320,1713222662028,-614.77,0.00033424,7]
[322699321,1713222662040,-590.78,0.00033424,7]
[322699322,1713222662050,-500.0,0.00033424,7]
[322699323,1713222662060,-1652.63,0.00033424,7]
[322699324,1713222662071,-821.12,0.00033424,7]
[322699325,1713222662079,-730.64,0.00033424,7]
[322699326,1713222662089,-500.0,0.00033424,7]
[322699327,1713222662100,-12837.64,0.00033424,7]
[322699328,1713222662111,-500.0,0.00033424,7]
[322699329,1713222662121,-510.66,0.00033424,7]
[322699330,1713222662132,-511.82,0.00033424,7]
[322699331,1713222662143,-1043.95,0.00033424,7]
[322699332,1713222662153,-547.13,0.00033424,7]
[322699333,1713222662164,-500.0,0.00033424,7]
[322699334,1713222662174,-500.0,0.00033424,7]
[322699335,1713222662184,-1765.62,0.00033424,7]
[322699336,1713222662195,-500.0,0.00033424,7]
[322699337,1713222662206,-876.44,0.00033424,7]
[322699338,1713222662217,-1020.69,0.00033424,7]
[322699339,1713222662228,-500.0,0.00033424,7]
[322699340,1713222662238,-500.0,0.00033424,7]
[322699341,1713222662249,-1714.91,0.00033424,7]
[322699342,1713222662259,-589.8,0.00033424,7]
[322699343,1713222662269,-592.62,0.00033424,7]
[322699344,1713222662279,-653.29,0.00033424,7]
[322699345,1713222662288,-1531.53,0.00033424,7]
[322699346,1713222662297,-500.0,0.00033424,7]
[322699347,1713222662306,-2171.65,0.00033424,7]
[322699348,1713222662315,-1028.6,0.00033424,7]
[322699349,1713222662324,-1237.6,0.00033424,7]
[322699350,1713222662334,-517.6,0.00033424,7]
[322699351,1713222662343,-510.11,0.00033424,7]
[322699352,1713222662353,-500.0,0.00033424,7]
[322699353,1713222662362,-500.0,0.00033424,7]
[322699354,1713222662371,-641.38,0.00033424,7]
[322699355,1713222662380,-710.42,0.00033424,7]
[322699356,1713222662389,-500.0,0.00033424,7]
[322699357,1713222662398,-500.0,0.00033424,7]
[322699358,1713222662407,-500.0,0.00033424,7]
[322699359,1713222662417,-1445.64,0.00033424,7]
[322699360,1713222662427,-561.27,0.00033424,7]
[322699361,1713222662437,-1792.44,0.00033424,7]
[322699362,1713222662447,-592.42,0.00033424,7]
[322699363,1713222662456,-1384.61,0.00033424,7]
[322699364,1713222662466,-637.59,0.00033424,7]
[322699365,1713222662475,-224.0,0.00033424,7]
[322699366,1713222662485,-1276.11,0.00033424,7]
[322699367,1713222662494,-1197.77,0.00033424,7]
[322699368,1713222662503,-500.0,0.00033424,7]
[322699369,1713222662512,-1165.94,0.00033424,7]
[322699370,1713222662522,-164.0,0.0003349,35]
[322699371,1713222662531,-3165.0,0.0003349,35]
[322699372,1713222662540,-164.0,0.000335,35]
[322699373,1713222662549,-3165.0,0.000335,35]
[322699374,1713222662557,-164.0,0.0003351,35]
[322699375,1713222662567,-3165.0,0.0003351,35]
[322699376,1713222662576,-4846.42835322,0.0003352,5]
[322699377,1713222662585,-65672.65534908,0.0003352,30]
[322699378,1713222662594,-168.12852,0.0003352,2]
[322699379,1713222662604,-168.12852,0.0003352,2]
[322699380,1713222662613,-539.563969,0.0003352,2]
[322699381,1713222662623,-539.563969,0.0003352,2]
[322699382,1713222662633,-358.39315,0.0003352,2]
[322699383,1713222662642,-358.39315,0.0003352,2]
[322699384,1713222662652,-151.0,0.0003352,2]
[322699385,1713222662661,-272.816358,0.0003352,2]
[322699386,1713222662670,-151.0,0.0003352,2]
[322699387,1713222662681,-791.050346,0.0003352,2]
[322699388,1713222662690,-791.050346,0.0003352,2]
[322699389,1713222662699,-151.0,0.0003352,2]
[322699390,1713222662709,-4456.680998,0.0003352,2]
[322699391,1713222662719,-4456.680998,0.0003352,2]
[322699392,1713222662728,-160.8,0.00033698,7]
[322699393,1713222662737,-500.0,0.00033698,7]
[322699394,1713222662746,-500.0,0.00033698,7]
[322699395,1713222662756,-1187.57,0.00033698,7]
[322699396,1713222662765,-500.0,0.00033698,7]
[322699397,1713222662775,-500.0,0.00033698,7]
[322699398,1713222662784,-500.0,0.00033698,7]
[322699399,1713222662862,-500.0,0.00033698,7]
[322699400,1713222662872,-609.49,0.00033698,7]
[322699401,1713222662881,-629.1,0.00033698,7]
[322699402,1713222662891,-512.8,0.00033698,7]
[322699403,1713222662900,-500.0,0.00033698,7]
[322699404,1713222662910,-500.0,0.00033698,7]
[322699405,1713222662920,-737.39,0.00033698,7]
[322699406,1713222662930,-1437.35,0.00033698,7]
[322699407,1713222662940,-846.83,0.00033698,7]
[322699408,1713222662949,-886.48,0.00033698,7]
[322699409,1713222662959,-500.0,0.00033698,7]
[322699410,1713222662967,-500.0,0.00033698,7]
[322699411,1713222662976,-769.54,0.00033698,7]
[322699412,1713222662986,-562.94,0.00033698,7]
[322699413,1713222662995,-514.13,0.00033698,7]
[322699414,1713222663004,-500.0,0.00033698,7]
[322699415,1713222663013,-500.0,0.00033698,7]
[322699416,1713222663023,-500.0,0.00033698,7]
[322699417,1713222663036,-500.0,0.00033698,7]
[322699418,1713222663045,-500.0,0.00033698,7]
[322699419,1713222663055,-500.0,0.00033698,7]
[322699420,1713222663064,-736.83,0.00033698,7]
[322699421,1713222663073,-500.0,0.00033698,7]
[322699422,1713222663082,-550.12471512,0.00033698,7]
[322699423,1713222663090,-500.0,0.00033698,7]
[322699424,1713222663100,-500.0,0.00033698,7]
[322699425,1713222663110,-500.0,0.00033698,7]
[322699426,1713222663119,-500.0,0.00033698,7]
[322699427,1713222663128,-710.12,0.00033698,7]
[322699428,1713222663137,-159.18499748,0.00033698,7]
[322699429,1713222663146,-151.0,0.00033698,2]
[322699430,1713222663154,-1114.15,0.00033698,7]
[322699431,1713222663163,-7430.81,0.00033698,7]
[322699432,1713222663173,-3446.38,0.00033698,7]
[322699433,1713222663186,-523.83,0.00033698,7]
[322699434,1713222663195,-1695.099817,0.00033698,2]
[322699435,1713222663205,-1695.099817,0.00033698,2]
[322699436,1713222663215,-614.77,0.00033698,7]
[322699437,1713222663224,-590.78,0.00033698,7]
[322699438,1713222663234,-500.0,0.00033698,7]
[322699439,1713222663243,-1652.63,0.00033698,7]
[322699440,1713222663253,-821.12,0.00033698,7]
[322699441,1713222663262,-730.64,0.00033698,7]
[322699442,1713222663271,-500.0,0.00033698,7]
[322699443,1713222663280,-151.0,0.00033698,2]
[322699444,1713222663289,-151.0,0.00033698,2]
[322699445,1713222663298,-12837.64,0.00033698,7]
[322699446,1713222663307,-151.0,0.00033698,2]
[322699447,1713222663315,-500.0,0.00033698,7]
[322699448,1713222663325,-510.66,0.00033698,7]
[322699449,1713222663334,-511.82,0.00033698,7]
[322699450,1713222663343,-1043.95,0.00033698,7]
[322699451,1713222663353,-547.13,0.00033698,7]
[322699452,1713222663362,-500.0,0.00033698,7]
[322699453,1713222663371,-500.0,0.00033698,7]
[322699454,1713222663380,-1765.62,0.00033698,7]
[322699455,1713222663389,-161.572846,0.00033698,2]
[322699456,1713222663398,-161.572846,0.00033698,2]
[322699457,1713222663407,-151.0,0.00033698,2]
[322699458,1713222663416,-151.0,0.00033698,2]
[322699459,1713222663426,-500.0,0.00033698,7]
[322699460,1713222663437,-876.44,0.00033698,7]
[322699461,1713222663446,-1020.69,0.00033698,7]
[322699462,1713222663455,-500.0,0.00033698,7]
[322699463,1713222663464,-1012.760098,0.00033698,2]
[322699464,1713222663473,-1012.760098,0.00033698,2]
[322699465,1713222663482,-500.0,0.00033698,7]
[322699466,1713222663491,-1714.91,0.00033698,7]
[322699467,1713222663500,-589.8,0.00033698,7]
[322699468,1713222663509,-592.62,0.00033698,7]
[322699469,1713222663519,-653.29,0.00033698,7]
[322699470,1713222663528,-1531.53,0.00033698,7]
[322699471,1713222663537,-500.0,0.00033698,7]
[322699472,1713222663547,-2171.65,0.00033698,7]
[322699473,1713222663557,-1028.6,0.00033698,7]
[322699474,1713222663568,-1237.6,0.00033698,7]
[322699475,1713222663577,-517.6,0.00033698,7]
[322699476,1713222663587,-510.11,0.00033698,7]
[322699477,1713222663596,-500.0,0.00033698,7]
[322699478,1713222663610,-500.0,0.00033698,7]
[322699479,1713222663626,-641.38,0.00033698,7]
[322699480,1713222663635,-710.42,0.00033698,7]
[322699481,1713222663645,-500.0,0.00033698,7]
[322699482,1713222663655,-500.0,0.00033698,7]
[322699483,1713222663664,-500.0,0.00033698,7]
[322699484,1713222663674,-1445.64,0.00033698,7]
[322699485,1713222663685,-561.27,0.00033698,7]
[322699486,1713222663695,-1792.44,0.00033698,7]
[322699487,1713222663704,-592.42,0.00033698,7]
[322699488,1713222663713,-1384.61,0.00033698,7]
[322699489,1713222663722,-637.59,0.00033698,7]
[322699490,1713222663731,-1276.11,0.00033698,7]
[322699491,1713222663740,-1197.77,0.00033698,7]
[322699492,1713222663749,-500.0,0.00033698,7]
[322699493,1713222663758,-603.4568888,0.00033928,7]
[322699494,1713222663767,-150.5,0.00033942,35]
[322699495,1713222663776,-150.5,0.00033942,35]
[322699496,1713222663785,-150.5,0.00033952,35]
[322699497,1713222663794,-150.5,0.00033952,35]
[322699498,1713222663803,-150.5,0.00033962,35]
[322699499,1713222663812,-150.5,0.00033962,35]
[322699500,1713222663822,-150.5,0.00033962,35]
[322699501,1713222663831,-150.5,0.00033962,35]
[322699502,1713222663841,-500.0,0.00033972,7]
[322699503,1713222663850,-1187.57,0.00033972,7]
[322699504,1713222663859,-155.9323767,0.00033972,7]
[322699505,1713222663868,-500.0,0.00033972,7]
[322699506,1713222663877,-227.225342,0.00033972,2]
[322699507,1713222663885,-500.0,0.00033972,7]
[322699508,1713222663895,-609.49,0.00033972,7]
[322699509,1713222663903,-629.1,0.00033972,7]
[322699510,1713222663913,-512.8,0.00033972,7]
[322699511,1713222663922,-500.0,0.00033972,7]
[322699512,1713222663933,-500.0,0.00033972,7]
[322699513,1713222663942,-151.0,0.00033972,2]
[322699514,1713222663951,-151.0,0.00033972,2]
[322699515,1713222663960,-737.39,0.00033972,7]
[322699516,1713222663969,-1437.35,0.00033972,7]
[322699517,1713222663978,-151.0,0.00033972,2]
[322699518,1713222663986,-151.0,0.00033972,2]
[322699519,1713222663995,-846.83,0.00033972,7]
[322699520,1713222664004,-886.48,0.00033972,7]
[322699521,1713222664014,-500.0,0.00033972,7]
[322699522,1713222664023,-500.0,0.00033972,7]
[322699523,1713222664036,-313.977112,0.00033972,2]
[322699524,1713222664112,-313.977112,0.00033972,2]
[322699525,1713222664122,-769.54,0.00033972,7]
[322699526,1713222664132,-562.94,0.00033972,7]
[322699527,1713222664142,-500.0,0.00033972,7]
[322699528,1713222664151,-500.0,0.00033972,7]
[322699529,1713222664162,-500.0,0.00033972,7]
[322699530,1713222664171,-500.0,0.00033972,7]
[322699531,1713222664181,-620.31014858,0.00033972,7]
[322699532,1713222664190,-736.83,0.00033972,7]
[322699533,1713222664199,-500.0,0.00033972,7]
[322699534,1713222664208,-333.279038,0.00033972,2]
[322699535,1713222664217,-500.0,0.00033972,7]
[322699536,1713222664226,-333.279038,0.00033972,2]
[322699537,1713222664235,-500.0,0.00033972,7]
[322699538,1713222664243,-500.0,0.00033972,7]
[322699539,1713222664252,-500.0,0.00033972,7]
[322699540,1713222664261,-710.12,0.00033972,7]
[322699541,1713222664271,-1114.15,0.00033972,7]
[322699542,1713222664279,-7430.81,0.00033972,7]
[322699543,1713222664288,-3446.38,0.00033972,7]
[322699544,1713222664297,-523.83,0.00033972,7]
[322699545,1713222664307,-614.77,0.00033972,7]
[322699546,1713222664319,-590.78,0.00033972,7]
[322699547,1713222664328,-500.0,0.00033972,7]
[322699548,1713222664337,-1652.63,0.00033972,7]
[322699549,1713222664345,-821.12,0.00033972,7]
[322699550,1713222664355,-730.64,0.00033972,7]
[322699551,1713222664364,-500.0,0.00033972,7]
[322699552,1713222664373,-12837.64,0.00033972,7]
[322699553,1713222664382,-500.0,0.00033972,7]
[322699554,1713222664391,-510.66,0.00033972,7]
[322699555,1713222664400,-511.82,0.00033972,7]
[322699556,1713222664409,-1043.95,0.00033972,7]
[322699557,1713222664418,-547.13,0.00033972,7]
[322699558,1713222664427,-500.0,0.00033972,7]
[322699559,1713222664436,-500.0,0.00033972,7]
[322699560,1713222664445,-1765.62,0.00033972,7]
[322699561,1713222664454,-500.0,0.00033972,7]
[322699562,1713222664464,-876.44,0.00033972,7]
[322699563,1713222664473,-1020.69,0.00033972,7]
[322699564,1713222664482,-500.0,0.00033972,7]
[322699565,1713222664491,-500.0,0.00033972,7]
[322699566,1713222664500,-1714.91,0.00033972,7]
[322699567,1713222664510,-589.8,0.00033972,7]
[322699568,1713222664519,-592.62,0.00033972,7]
[322699569,1713222664528,-653.29,0.00033972,7]
[322699570,1713222664538,-1531.53,0.00033972,7]
[322699571,1713222664547,-329.10033173,0.00033972,7]
[322699572,1713222664556,-2171.65,0.00033972,7]
[322699573,1713222664565,-1028.6,0.00033972,7]
[322699574,1713222664574,-1237.6,0.00033972,7]
[322699575,1713222664584,-517.6,0.00033972,7]
[322699576,1713222664593,-510.11,0.00033972,7]
[322699577,1713222664602,-500.0,0.00033972,7]
[322699578,1713222664611,-565.2,0.00033972,7]
[322699579,1713222664620,-641.38,0.00033972,7]
[322699580,1713222664629,-710.42,0.00033972,7]
[322699581,1713222664645,-500.0,0.00033972,7]
[322699582,1713222664662,-500.0,0.00033972,7]
[322699583,1713222664681,-500.0,0.00033972,7]
[322699584,1713222664699,-1445.64,0.00033972,7]
[322699585,1713222664714,-561.27,0.00033972,7]
[322699586,1713222664731,-1792.44,0.00033972,7]
[322699587,1713222664749,-592.42,0.00033972,7]
[322699588,1713222664764,-1384.61,0.00033972,7]
[322699589,1713222664782,-637.59,0.00033972,7]
[322699590,1713222664797,-1276.11,0.00033972,7]
[322699591,1713222664814,-1197.77,0.00033972,7]
[322699592,1713222664834,-500.0,0.00033972,7]
[322699593,1713222664849,-465.39337493,0.00034,4]
[322699594,1713222664862,-1152.0,0.00034051,2]
[322699595,1713222664878,-500.0,0.00034246,7]
[322699596,1713222664892,-1187.57,0.00034246,7]
[322699597,1713222664907,-500.0,0.00034246,7]
[322699598,1713222664922,-609.49,0.00034246,7]
[322699599,1713222664938,-629.1,0.00034246,7]
[322699600,1713222664952,-512.8,0.00034246,7]
[322699601,1713222664965,-500.0,0.00034246,7]
[322699602,1713222664979,-500.0,0.00034246,7]
[322699603,1713222664992,-737.39,0.00034246,7]
[322699604,1713222665007,-1437.35,0.00034246,7]
[322699605,1713222665021,-846.83,0.00034246,7]
[322699606,1713222665037,-886.48,0.00034246,7]
[322699607,1713222665051,-500.0,0.00034246,7]
[322699608,1713222665066,-500.0,0.00034246,7]
[322699609,1713222665081,-769.54,0.00034246,7]
[322699610,1713222665095,-562.94,0.00034246,7]
[322699611,1713222665109,-500.0,0.00034246,7]
[322699612,1713222665123,-500.0,0.00034246,7]
[322699613,1713222665137,-500.0,0.00034246,7]
[322699614,1713222665151,-500.0,0.00034246,7]
[322699615,1713222665166,-736.83,0.00034246,7]
[322699616,1713222665180,-500.0,0.00034246,7]
[322699617,1713222665195,-289.04658859,0.00034246,7]
[322699618,1713222665209,-500.0,0.00034246,7]
[322699619,1713222665222,-500.0,0.00034246,7]
[322699620,1713222665236,-500.0,0.00034246,7]
[322699621,1713222665250,-710.12,0.00034246,7]
[322699622,1713222665264,-1114.15,0.00034246,7]
[322699623,1713222665278,-2125.13050082,0.00034246,7]
[322699624,1713222665978,-154.87609912,0.00028675,2]
[322699625,1713222665987,-1309.46372676,0.00028675,2]
[322699626,1713222665997,-535.66773995,0.00028675,2]
[322699627,1713222666144,-1397.92199008,0.00028675,2]
[322699628,1713222666155,-211.7214804,0.00028675,2]
[322699629,1713222666164,-650.51865162,0.00028675,2]
[322699635,1713223768102,-602.31021043,0.00023042,2]
[322699636,1713223768122,-1000.0,0.00023042,2]
[322699637,1713223768142,-3740.74588478,0.00023042,2]
[322699638,1713223768161,-882.33479028,0.00023043,2]
[322699639,1713223768180,-207.55380091,0.00023043,2]
[322699640,1713223768199,-154.87609912,0.00023043,2]
[322699641,1713223768220,-355.98303897,0.00023043,2]
[322699642,1713223768240,-538.98088948,0.00023044,2]
[322699643,1713223768261,-467.57706084,0.00023044,2]
[322699644,1713223768281,-711.0053167,0.00023044,2]
[322699645,1713223768300,-489.71774407,0.00023044,2]
[322699646,1713223768319,-525.49067281,0.00023044,2]
[322699647,1713223768339,-236.30551311,0.00023045,2]
[322699648,1713223768363,-3856.87045762,0.00023045,2]
[322699695,1713223838503,-880.8735514,0.00020943,2]
[322699696,1713223838512,-216.09314923,0.00020944,2]
[322699697,1713223838521,-235.75906111,0.00020945,2]
[322699698,1713223838530,-882.33479028,0.00023037,2]
[322699700,1713223838539,-525.49067281,0.00023037,2]
[322699702,1713223838548,-300.0,0.00023038,2]
[322699703,1713223838556,-300.0,0.00023038,2]
[322699705,1713223838565,-2321.0401211,0.00023039,2]
[322699807,1713223840409,-5533.9852937,0.00023039,2]
[322699808,1713223840421,-211.7214804,0.0002304,2]
[322699810,1713223840432,-8000.0,0.0002304,2]
[322699812,1713223840443,-2124.60141988,0.00023041,2]
[322699814,1713223840453,-355.98303897,0.00023043,2]
[322699816,1713223840464,-535.43792866,0.00023043,2]
[322699817,1713223840473,-156.77861177,0.00023044,2]
[322699818,1713223840483,-2007.62821039,0.00023044,2]
[322699819,1713223840493,-59063.66666477,0.00023045,2]
[322699820,1713223840503,-538.98088948,0.00023058,2]
[322699821,1713223840512,-602.31021043,0.00023059,2]
[322699822,1713223840652,-2455.53760575,0.00023059,2]
[322699823,1713223840661,-474.00354447,0.00023059,2]
[322699824,1713223840671,-234.68802031,0.0002306,2]
[322699825,1713223840680,-1000.0,0.0002306,2]
[322699826,1713223840690,-236.30551311,0.0002306,2]
[322699827,1713223840699,-244.79000914,0.0002306,2]
[322699828,1713223840709,-24900.0,0.00023061,2]
[322699829,1713223840719,-154.35921712,0.00023395,2]
[322699830,1713223840728,-166.780428,0.00023504,2]
[322699831,1713223840737,-380.0,0.00024658,2]
[322699832,1713223840746,-156.98200501,0.00025,2]
[322699833,1713223840755,-420.0,0.00025009,2]
[322699834,1713223840764,-420.0,0.00025342,2]
[322699835,1713223840773,-235.75906111,0.00025945,2]
[322699836,1713223840782,-587.0,0.00027147,2]
[322699837,1713223840792,-381.508039,0.00027397,2]
[322699838,1713223840801,-310.841576,0.00027397,2]
[322699839,1713223840810,-166.666666,0.00027397,2]
[322699840,1713223840820,-160.057611,0.00027397,2]
[322699841,1713223840829,-587.0,0.00027877,2]
[322699842,1713223840839,-166.666666,0.00028038,2]
[322699843,1713223840848,-755.09359961,0.00028675,2]
[322699844,1713223840857,-74681.2074685,0.00028675,14]
[322699845,1713223840866,-166.666666,0.00028679,2]
[322699846,1713223840875,-783.63141595,0.00028734,2]
[322699847,1713223840885,-309.56660984,0.00028763,2]
[322699848,1713223840894,-167.25144684,0.00028763,2]
[322699849,1713223840903,-309.56660676,0.00028763,2]
[322699850,1713223840913,-163.91782719,0.00028763,2]
[322699851,1713223840922,-193.29068397,0.00028763,2]
[322699852,1713223840932,-9558.22389449,0.00028763,2]
[322699853,1713223840942,-953.73793423,0.00028763,2]
[322699854,1713223840952,-309.55115161,0.00028763,2]
[322699855,1713223840961,-309.56660676,0.00028763,2]
[322699856,1713223840971,-1672.97193962,0.00028763,2]
[322699857,1713223840980,-5443.29995952,0.00028763,2]
[322699858,1713223840989,-500.93114639,0.00028763,2]
[322699859,1713223840998,-1418.07557792,0.00028764,2]
[322699860,1713223841007,-157.17600057,0.00028766,2]
[322699861,1713223841017,-991.92956482,0.00028766,2]
[322699862,1713223841025,-156.04946973,0.00028766,2]
[322699863,1713223841034,-279.4131126,0.00028766,2]
[322699864,1713223841044,-169.14261084,0.00028766,2]
[322699865,1713223841053,-1269.26619515,0.00028766,2]
[322699866,1713223841062,-1309.46372676,0.00028766,2]
[322699867,1713223841071,-185.60816315,0.00028767,2]
[322699868,1713223841080,-199.29641321,0.00028767,2]
[322699869,1713223841089,-166.666666,0.00029321,2]
[322699870,1713223841098,-823.0,0.00029469,2]
[322699871,1713223841107,-2000.0,0.000299,2]
[322699872,1713223841116,-166.666666,0.00029962,2]
[322699873,1713223841126,-1242.51023388,0.0003,4]
[322699874,1713223841136,-154.87609912,0.0003,4]
[322699875,1713223841146,-154.87609912,0.0003,4]
[322699876,1713223841155,-214.0,0.0003,2]
[322699877,1713223841164,-785.0559534,0.00030134,4]
[322699878,1713223841173,-181.35209794,0.00030134,2]
[322699879,1713223841183,-726.14189843,0.00030135,4]
[322699880,1713223841192,-527.89540113,0.00030135,4]
[322699881,1713223841201,-888.05887897,0.00030135,4]
[322699882,1713223841211,-500.0,0.00030136,2]
[322699883,1713223841220,-500.0,0.00030136,2]
[322699884,1713223841229,-500.0,0.00030136,2]
[322699885,1713223841238,-500.0,0.00030136,2]
[322699886,1713223841246,-500.0,0.00030136,2]
[322699887,1713223841256,-500.0,0.00030136,2]
[322699888,1713223841265,-602.2,0.00030136,2]
[322699889,1713223841275,-500.0,0.00030136,2]
[322699890,1713223841286,-153.73794988,0.00030136,2]
[322699891,1713223841294,-500.0,0.00030136,2]
[322699892,1713223841303,-500.0,0.00030136,2]
[322699893,1713223841312,-509.48,0.00030136,2]
[322699894,1713223841321,-500.0,0.00030136,2]
[322699895,1713223841330,-500.0,0.00030136,2]
[322699896,1713223841340,-757.71,0.00030136,2]
[322699897,1713223841348,-500.0,0.00030136,2]
[322699898,1713223841357,-500.0,0.00030136,2]
[322699899,1713223841366,-500.0,0.00030136,2]
[322699900,1713223841379,-500.0,0.00030136,2]
[322699901,1713223841389,-500.0,0.00030136,2]
[322699902,1713223841398,-500.0,0.00030136,2]
[322699903,1713223841408,-500.0,0.00030136,2]
[322699904,1713223841417,-500.0,0.00030136,2]
[322699905,1713223841426,-500.0,0.00030136,2]
[322699906,1713223841436,-500.0,0.00030136,2]
[322699907,1713223841446,-500.0,0.00030136,2]
[322699908,1713223841455,-500.0,0.00030136,2]
[322699909,1713223841464,-500.0,0.00030136,2]
[322699910,1713223841473,-550.12471512,0.00030136,2]
[322699911,1713223841482,-593.99,0.00030136,2]
[322699912,1713223841491,-159.18499748,0.00030136,2]
[322699913,1713223841501,-689.1,0.00030136,2]
[322699914,1713223841510,-500.0,0.00030136,2]
[322699915,1713223841519,-500.0,0.00030136,2]
[322699916,1713223841528,-500.0,0.00030136,2]
[322699917,1713223841538,-500.0,0.00030136,2]
[322699918,1713223841547,-500.0,0.00030136,2]
[322699919,1713223841556,-500.0,0.00030136,2]
[322699920,1713223841565,-543.22,0.00030136,2]
[322699921,1713223841573,-500.0,0.00030136,2]
[322699922,1713223841582,-500.0,0.00030136,2]
[322699923,1713223841591,-500.0,0.00030136,2]
[322699924,1713223841600,-500.0,0.00030136,2]
[322699925,1713223841609,-500.0,0.00030136,2]
[322699926,1713223841619,-500.0,0.00030136,2]
[322699927,1713223841628,-500.0,0.00030136,2]
[322699928,1713223841638,-975.64,0.00030136,2]
[322699929,1713223841647,-6563.61,0.00030136,2]
[322699930,1713223841656,-500.0,0.00030136,2]
[322699931,1713223841665,-500.0,0.00030136,2]
[322699932,1713223841675,-500.0,0.00030136,2]
[322699933,1713223841684,-500.0,0.00030136,2]
[322699934,1713223841693,-500.0,0.00030136,2]
[322699935,1713223841703,-925.54,0.00030136,2]
[322699936,1713223841712,-500.0,0.00030136,2]
[322699937,1713223841722,-500.0,0.00030136,2]
[322699938,1713223841732,-500.0,0.00030136,2]
[322699939,1713223841742,-500.0,0.00030136,2]
[322699940,1713223841751,-500.0,0.00030136,2]
[322699941,1713223841761,-500.0,0.00030136,2]
[322699942,1713223841770,-500.0,0.00030136,2]
[322699943,1713223841780,-500.0,0.00030136,2]
[322699944,1713223841789,-500.0,0.00030136,2]
[322699945,1713223841798,-994.99,0.00030136,2]
[322699946,1713223841807,-500.0,0.00030136,2]
[322699947,1713223841817,-500.0,0.00030136,7]
[322699948,1713223841828,-500.0,0.00030136,7]
[322699949,1713223841838,-500.0,0.00030136,7]
[322699950,1713223841847,-500.0,0.00030136,7]
[322699951,1713223841856,-500.0,0.00030136,7]